bitfinex/quotes_SOLUSD_20250817
["timestamp","ask_amount","ask_price","bid_price","bid_amount"]
[1755438781617,3.91756719,193.72,193.71,0.03]
[1755438781919,7.77994934,193.72,193.71,0.03]
[1755438782114,11.25713906,193.72,193.71,0.03]
[1755438782318,11.91713906,193.72,193.71,0.03]
[1755438783252,16.25488048,193.72,193.71,0.03]
[1755438783439,17.0763174,193.72,193.71,0.03]
[1755438784431,15.10621557,193.71,193.69,0.03]
[1755438784634,68.67288903,193.7,193.69,0.03]
[1755438784816,69.33288903,193.7,193.69,0.03]
[1755438785021,69.33288903,193.7,193.69,1e-08]
[1755438785234,68.04094418,193.7,193.69,1e-08]
[1755438785425,49.81928321,193.7,193.69,1e-08]
[1755438785625,7.9966606,193.7,193.69,1e-08]
[1755438785823,9.68209349,193.7,193.69,1e-08]
[1755438786038,17.0768504,193.7,193.69,1e-08]
[1755438786230,32.18306597,193.7,193.69,1e-08]
[1755438786432,3.91756719,193.68,193.67,0.03]
[1755438786637,7.77118713,193.68,193.67,0.03]
[1755438786824,11.90837685,193.68,193.67,0.03]
[1755438787019,8.05475691,193.68,193.67,0.03]
[1755438787220,10.500384,193.68,193.67,0.03]
[1755438787444,34.24694501,193.68,193.67,0.03]
[1755438787815,15.10621557,193.67,193.65,0.03]
[1755438788014,63.01462729,193.66,193.65,0.03]
[1755438788248,63.67462729,193.66,193.65,0.03]
[1755438788747,27.01462729,193.66,193.65,0.03]
[1755438788928,63.67462729,193.66,193.65,0.03]
[1755438789448,68.83831622,193.66,193.65,0.03]
[1755438789751,68.83065247,193.66,193.65,0.03]
[1755438790631,68.83065247,193.66,193.63,0.03]
[1755438790834,45.02378276,193.64,193.63,1e-08]
[1755438791135,41.10621557,193.62,193.61,0.03]
[1755438791344,88.98696354,193.62,193.61,0.03]
[1755438791559,94.81171924,193.62,193.61,0.03]
[1755438792324,96.88173824,193.62,193.61,0.03]
[1755438792830,15.10621557,193.61,193.59,0.03]
[1755438793020,27.00696354,193.61,193.59,0.03]
[1755438793219,11.90074797,193.6,193.59,0.03]
[1755438793422,17.06603722,193.6,193.59,0.03]
[1755438793745,65.31506307,193.6,193.59,0.03]
[1755438795647,65.35783257,193.6,193.59,0.03]
[1755438795850,68.80331369,193.6,193.59,0.03]
[1755438796032,68.8035428,193.6,193.59,0.03]
[1755438796424,70.87187435,193.6,193.59,0.03]
[1755438798825,70.87187435,193.6,193.56,0.03]
[1755438798826,15.10621557,193.59,193.56,0.03]
[1755438799024,23.57065698,193.59,193.56,0.03]
[1755438799335,49.57065698,193.59,193.56,0.03]
[1755438799537,53.01058976,193.59,193.56,0.03]
[1755438799943,58.17614583,193.59,193.56,0.03]
[1755438802740,60.24669983,193.59,193.56,0.03]
[1755438803965,26.16919986,193.59,193.56,0.03]
[1755438804147,24.09864586,193.59,193.58,0.72]
[1755438804469,24.09864586,193.59,193.58,0.03]
[1755438804649,20.27177164,193.59,193.58,0.03]
[1755438804966,28.00461728,193.59,193.58,0.03]
[1755438805558,65.32461728,193.59,193.58,0.03]
[1755438807362,64.60461728,193.59,193.58,0.03]
[1755438807737,60.68705009,193.59,193.58,0.03]
[1755438807943,3.81527845,193.59,193.58,0.72]
[1755438808144,3.81527845,193.61,193.58,0.72]
[1755438808436,3.81527845,193.6,193.59,0.69]
[1755438808643,3.81527845,193.6,193.58,3.94756719]
[1755438808858,5.16478577,193.62,193.58,3.94756719]
[1755438809055,3.81741931,193.61,193.58,3.94756719]
[1755438809233,3.81741931,193.6,193.59,4.60756719]
[1755438810544,5.16425308,193.64,193.59,4.60756719]
[1755438810744,3.81876556,193.63,193.61,3.91756719]
[1755438811070,3.81876556,193.62,193.61,4.60756719]
[1755438811950,0.06,193.65,193.61,4.60756719]
[1755438812140,3.81913224,193.64,193.62,0.69]
[1755438812345,0.06,193.65,193.63,3.91756719]
[1755438812566,0.06,193.65,193.64,4.60756719]
[1755438812968,0.06,193.65,193.64,3.91756719]
[1755438813169,0.06,193.65,193.64,4.60756719]
[1755438813547,0.06,193.65,193.64,30.60756719]
[1755438813748,0.06,193.65,193.64,35.77178945]
[1755438815158,0.06,193.65,193.64,4.60756719]
[1755438815356,0.06,193.65,193.64,3.91756719]
[1755438815951,0.06,193.65,193.64,9.77178945]
[1755438816659,0.06,193.65,193.64,4.60756719]
[1755438817173,0.06,193.65,193.64,35.77178945]
[1755438817347,0.06,193.65,193.64,9.77178945]
[1755438817948,0.06,193.65,193.64,3.91756719]
[1755438818361,0.06,193.65,193.64,4.60756719]
[1755438818672,0.06,193.65,193.64,30.60756719]
[1755438818880,0.06,193.65,193.64,35.77178945]
[1755438819751,0.06,193.65,193.64,35.08178945]
[1755438820372,0.06,193.65,193.64,35.77178945]
[1755438820773,0.06,193.65,193.64,3.91756719]
[1755438822682,0.06,193.65,193.63,26.0]
[1755438822886,0.06,193.65,193.64,3.91756719]
[1755438823284,0.06,193.65,193.64,4.60756719]
[1755438823457,0.06,193.65,193.64,3.91756719]
[1755438823977,0.06,193.65,193.64,4.60756719]
[1755438824279,0.06,193.65,193.64,9.77178945]
[1755438825256,0.06,193.67,193.66,26.0]
[1755438825474,0.06,193.67,193.66,29.91756719]
[1755438825678,0.06,193.67,193.66,104.11756717]
[1755438825891,0.06,193.67,193.66,104.80756717]
[1755438826266,0.06,193.67,193.66,109.9712561]
[1755438826774,0.06,193.67,193.66,104.11756717]
[1755438826986,0.06,193.67,193.66,45.68125612]
[1755438827610,0.06,193.67,193.66,46.37125612]
[1755438827973,0.06,193.67,193.66,9.08125612]
[1755438828369,0.06,193.67,193.66,45.68125612]
[1755438831111,0.06,193.67,193.66,45.66125612]
[1755438832504,0.06,193.67,193.66,46.35125612]
[1755438833696,0.06,193.67,193.66,9.77125612]
[1755438834003,0.06,193.67,193.66,46.35125612]
[1755438837633,0.06,193.67,193.66,120.5512561]
[1755438838997,0.06,193.67,193.66,119.8612561]
[1755438840118,0.06,193.69,193.68,26.0]
[1755438840320,0.06,193.69,193.68,29.91756719]
[1755438840637,0.77,193.69,193.68,66.47756719]
[1755438841931,0.77,193.69,193.68,71.64072291]
[1755438842442,0.06,193.69,193.68,71.64072291]
[1755438843536,0.06,193.69,193.68,145.84072289]
[1755438844738,0.06,193.69,193.68,141.9231557]
[1755438844938,0.06,193.69,193.68,145.84072289]
[1755438846519,0.77,193.69,193.68,145.84072289]
[1755438846718,0.06,193.69,193.68,145.84072289]
[1755438847122,0.06,193.69,193.68,109.28072289]
[1755438847339,0.06,193.69,193.68,145.80072289]
[1755438848142,0.06,193.69,193.68,109.28072289]
[1755438848342,0.06,193.69,193.68,145.80072289]
[1755438848647,0.77,193.69,193.68,145.78072289]
[1755438849146,0.77,193.69,193.65,74.22999998]
[1755438849442,7.76001948,193.68,193.65,0.03]
[1755438849645,9.0058746,193.67,193.65,0.03]
[1755438849943,5.87342231,193.67,193.65,0.03]
[1755438850133,0.71,193.66,193.65,0.03]
[1755438850526,4.5556159,193.66,193.65,0.03]
[1755438851948,8.01975894,193.66,193.65,0.03]
[1755438852246,13.18344787,193.66,193.65,0.03]
[1755438852539,13.18925693,193.66,193.65,0.03]
[1755438853552,8.025568,193.66,193.65,0.03]
[1755438854058,13.18925693,193.66,193.65,0.03]
[1755438855628,17.10682412,193.66,193.65,0.03]
[1755438856247,13.18925693,193.66,193.65,0.03]
[1755438857546,8.025568,193.66,193.65,0.03]
[1755438857734,8.025568,193.66,193.65,3.94756719]
[1755438857735,7.32219511,193.66,193.65,3.94756719]
[1755438858442,3.85763957,193.66,193.65,3.94756719]
[1755438858742,7.32178261,193.66,193.65,3.94756719]
[1755438858950,3.85763957,193.66,193.65,3.94756719]
[1755438859148,7.32178261,193.66,193.65,3.94756719]
[1755438859352,3.85763957,193.66,193.65,3.94756719]
[1755438860353,0.69,193.66,193.65,3.94756719]
[1755438860542,4.54730263,193.66,193.65,0.03]
[1755438860744,3.47169106,193.68,193.65,3.94756719]
[1755438860926,3.85724775,193.67,193.65,0.03]
[1755438861257,4.16169106,193.68,193.65,0.03]
[1755438861442,0.69,193.68,193.65,0.03]
[1755438861643,0.69,193.67,193.65,0.03]
[1755438862149,0.69,193.66,193.65,3.94756719]
[1755438862646,0.69,193.66,193.65,0.03]
[1755438864760,0.69,193.66,193.65,3.94756719]
[1755438867369,3.85691384,193.68,193.65,3.94756719]
[1755438867550,0.69,193.67,193.65,3.94756719]
[1755438868230,3.85687236,193.68,193.66,4.61756719]
[1755438868555,0.69,193.68,193.66,3.91756719]
[1755438869259,0.69,193.67,193.66,3.91756719]
[1755438871742,0.69,193.67,193.65,78.14756717]
[1755438871973,0.06,193.69,193.65,78.14756717]
[1755438872177,0.69,193.67,193.65,78.14756717]
[1755438873258,0.75,193.69,193.66,3.91756719]
[1755438873473,0.69,193.68,193.65,74.22999998]
[1755438873775,0.69,193.68,193.66,3.91756719]
[1755438874486,0.06,193.69,193.67,3.91756719]
[1755438874855,0.75,193.69,193.67,3.91756719]
[1755438875457,0.69,193.68,193.67,3.91756719]
[1755438876177,0.06,193.69,193.67,3.91756719]
[1755438876481,0.75,193.69,193.67,3.91756719]
[1755438877271,0.69,193.68,193.67,3.91756719]
[1755438879665,0.69,193.68,193.65,74.22999998]
[1755438879886,0.69,193.67,193.65,78.14756717]
[1755438880061,0.69,193.66,193.65,78.14756717]
[1755438880263,0.69,193.66,193.65,74.22999998]
[1755438880480,3.53135538,193.69,193.65,78.14756717]
[1755438880788,0.06,193.69,193.68,3.91756719]
[1755438880987,3.91814585,193.69,193.68,3.91756719]
[1755438881162,3.91814585,193.69,193.67,3.91756719]
[1755438881362,3.91814585,193.69,193.65,111.32999998]
[1755438881580,3.91814585,193.69,193.67,3.91756719]
[1755438882790,0.06,193.69,193.67,3.91756719]
[1755438882993,0.69,193.68,193.65,74.22999998]
[1755438883184,4.54937836,193.68,193.65,74.22999998]
[1755438883689,0.69,193.67,193.65,74.22999998]
[1755438884875,0.69,193.67,193.65,0.03]
[1755438885091,0.69,193.67,193.65,3.94756719]
[1755438885282,3.47435674,193.68,193.66,3.91756719]
[1755438885481,3.47435674,193.68,193.67,3.91756719]
[1755438885680,3.53435674,193.69,193.67,3.91756719]
[1755438885883,0.06,193.69,193.68,3.91756719]
[1755438886066,0.06,193.69,193.68,4.62756719]
[1755438886268,0.06,193.69,193.68,9.79072291]
[1755438886685,0.06,193.69,193.68,9.08072291]
[1755438886882,0.06,193.69,193.68,3.91756719]
[1755438887092,0.73,193.69,193.67,114.51756717]
[1755438887771,0.67,193.68,193.67,110.59999998]
[1755438888071,0.67,193.68,193.65,26.03]
[1755438888278,4.14456679,193.68,193.65,3.94756719]
[1755438888479,3.47456679,193.68,193.67,3.91756719]
[1755438888679,3.86199858,193.68,193.65,0.74]
[1755438888880,5.22289935,193.69,193.66,3.91756719]
[1755438889082,4.53199858,193.68,193.65,3.94756719]
[1755438889399,0.67,193.67,193.65,3.94756719]
[1755438889695,0.67,193.66,193.65,0.03]
[1755438890274,8.00995335,193.66,193.65,0.03]
[1755438891693,7.33995335,193.66,193.65,3.94756719]
[1755438892301,3.47882978,193.67,193.65,3.94756719]
[1755438892496,0.06,193.69,193.66,3.91756719]
[1755438892810,7.34420817,193.68,193.65,0.74]
[1755438893115,3.86544689,193.67,193.65,5.90382329]
[1755438893305,3.47876258,193.68,193.65,5.90382329]
[1755438893473,3.86674567,193.67,193.65,42.28382329]
[1755438893807,3.47982917,193.68,193.65,116.48382327]
[1755438894004,0.06,193.69,193.67,3.91756719]
[1755438894188,7.34649743,193.68,193.67,3.91756719]
[1755438894798,3.47982838,193.68,193.67,3.91756719]
[1755438894987,7.34639576,193.68,193.67,3.91756719]
[1755438895484,7.34632445,193.68,193.67,3.91756719]
[1755438895893,3.86649607,193.68,193.67,3.91756719]
[1755438896304,7.34626925,193.68,193.67,3.91756719]
[1755438896508,8.01626925,193.68,193.66,3.91756719]
[1755438896810,4.53668042,193.67,193.66,3.91756719]
[1755438897714,4.53668042,193.67,193.65,0.03]
[1755438897715,8.01698645,193.67,193.65,3.94756719]
[1755438897886,0.67,193.66,193.65,0.03]
[1755438898086,8.01798102,193.66,193.65,0.03]
[1755438900196,27.61788552,193.66,193.65,0.03]
[1755438900396,28.28788552,193.66,193.65,0.03]
[1755438900607,32.20545271,193.66,193.65,0.03]
[1755438900808,32.20732797,193.66,193.65,0.03]
[1755438902821,33.49951164,193.66,193.65,0.03]
[1755438903024,33.49850796,193.66,193.65,0.03]
[1755438903628,35.43158096,193.66,193.65,0.03]
[1755438903809,35.42962093,193.66,193.65,0.03]
[1755438904307,35.42962093,193.66,193.63,0.03]
[1755438904308,15.10621557,193.65,193.63,0.03]
[1755438904513,35.8822928,193.64,193.63,0.03]
[1755438904730,36.5522928,193.64,193.63,0.03]
[1755438905126,15.10621557,193.61,193.59,0.03]
[1755438905313,62.75052541,193.6,193.59,0.03]
[1755438905652,15.10621557,193.59,193.58,0.03]
[1755438905796,27.04052541,193.59,193.58,0.03]
[1755438906001,31.38520896,193.59,193.58,0.03]
[1755438906218,27.04052541,193.59,193.58,1e-08]
[1755438906425,36.55076503,193.59,193.58,1e-08]
[1755438906829,32.20608148,193.59,193.58,1e-08]
[1755438907043,28.28851429,193.59,193.58,1e-08]
[1755438907544,60.84236828,193.59,193.58,1e-08]
[1755438907719,18.58681221,193.59,193.58,1e-08]
[1755438907918,0.67,193.62,193.58,0.71000001]
[1755438908120,15.10621557,193.62,193.61,3.91756719]
[1755438908306,22.43011711,193.62,193.6,3.91756719]
[1755438908507,15.10621557,193.62,193.6,3.91756719]
[1755438908735,15.77621557,193.62,193.6,3.91756719]
[1755438908940,15.77621557,193.62,193.59,3.91756719]
[1755438910163,20.27117487,193.62,193.58,1e-08]
[1755438910447,0.67,193.61,193.58,3.9175672]
[1755438910739,0.67,193.6,193.58,3.9175672]
[1755438910931,15.77621557,193.6,193.58,1e-08]
[1755438911654,0.67,193.59,193.58,1e-08]
[1755438913043,5.83555607,193.59,193.58,1e-08]
[1755438914823,9.75312326,193.59,193.58,1e-08]
[1755438915023,13.21854644,193.59,193.58,1e-08]
[1755438915323,9.30097925,193.59,193.58,1e-08]
[1755438916119,5.83555607,193.59,193.58,1e-08]
[1755438916373,28.25506328,193.59,193.58,1e-08]
[1755438916664,30.32551028,193.59,193.58,1e-08]
[1755438916851,34.24307747,193.59,193.58,1e-08]
[1755438917247,15.10621557,193.58,193.57,1e-08]
[1755438917447,63.5070744,193.58,193.57,1e-08]
[1755438917751,63.5070744,193.58,193.56,1e-08]
[1755438917957,23.17783859,193.57,193.56,1e-08]
[1755438918576,18.5702714,193.57,193.56,1e-08]
[1755438918730,36.48,193.58,193.56,3.9175672]
[1755438919236,42.33588494,193.58,193.56,1e-08]
[1755438919746,15.10621557,193.57,193.56,1e-08]
[1755438921465,20.27230535,193.57,193.56,1e-08]
[1755438921662,24.87987254,193.57,193.56,1e-08]
[1755438922447,4.637567,193.6,193.56,1e-08]
[1755438922639,15.10621557,193.58,193.57,3.91756719]
[1755438922845,15.10621557,193.58,193.56,1e-08]
[1755438923564,15.10621557,193.58,193.56,3.9175672]
[1755438923766,15.10621557,193.58,193.56,1e-08]
[1755438923960,20.27214737,193.58,193.56,1e-08]
[1755438924347,37.21,193.57,193.56,1e-08]
[1755438924539,52.31621557,193.57,193.56,1e-08]
[1755438924754,51.62621557,193.57,193.56,1e-08]
[1755438925462,52.31621557,193.57,193.56,1e-08]
[1755438925649,36.52,193.57,193.56,1e-08]
[1755438925852,36.52,193.58,193.56,4.6275672]
[1755438926073,36.52,193.58,193.56,0.71000001]
[1755438926241,36.52,193.58,193.56,4.6275672]
[1755438926437,36.52,193.58,193.56,1e-08]
[1755438926662,36.52,193.58,193.56,3.9175672]
[1755438926862,15.10621557,193.57,193.56,1e-08]
[1755438928168,20.27230535,193.57,193.56,1e-08]
[1755438928375,20.96230535,193.57,193.56,1e-08]
[1755438928572,20.27230535,193.57,193.56,1e-08]
[1755438929540,0.06,193.59,193.56,3.9175672]
[1755438929745,0.06,193.59,193.58,3.91756719]
[1755438932089,0.06,193.59,193.56,0.71000001]
[1755438932273,0.06,193.59,193.58,3.91756719]
[1755438933661,0.06,193.59,193.57,3.91756719]
[1755438933866,0.06,193.59,193.56,4.6275672]
[1755438934972,0.06,193.59,193.57,3.91756719]
[1755438935802,0.06,193.59,193.56,0.71000001]
[1755438936168,0.06,193.59,193.57,3.91756719]
[1755438937979,0.75,193.59,193.57,3.91756719]
[1755438938295,0.06,193.59,193.57,3.91756719]
[1755438938497,0.06,193.59,193.57,0.71]
[1755438938669,0.06,193.59,193.57,4.62756719]
[1755438940001,0.06,193.59,193.57,3.91756719]
[1755438941500,3.53257812,193.59,193.57,3.91756719]
[1755438942324,0.06,193.59,193.57,3.91756719]
[1755438943494,3.92216216,193.59,193.57,3.91756719]
[1755438944220,9.08775916,193.59,193.56,0.71000001]
[1755438944419,3.47856829,193.58,193.57,3.91756719]
[1755438947025,3.47856829,193.58,193.56,1e-08]
[1755438947258,5.225597,193.59,193.57,3.91756719]
[1755438947446,7.34627833,193.58,193.57,3.91756719]
[1755438948455,3.48004108,193.58,193.57,3.91756719]
[1755438948626,7.34646746,193.58,193.57,3.91756719]
[1755438951646,7.34646746,193.58,193.57,4.58756719]
[1755438952033,0.06,193.59,193.57,4.58756719]
[1755438952229,0.06,193.59,193.58,4.58756719]
[1755438952828,7.40719758,193.59,193.58,3.91756719]
[1755438953248,7.40719758,193.59,193.58,9.0833901]
[1755438953451,0.06,193.59,193.58,9.7533901]
[1755438956449,0.06,193.59,193.58,83.95339008]
[1755438958850,0.06,193.59,193.58,80.03582289]
[1755438959053,0.06,193.59,193.58,83.95339008]
[1755438959452,0.06,193.59,193.58,120.35339008]
[1755438959941,0.06,193.59,193.58,120.33339008]
[1755438960372,0.06,193.59,193.58,83.95339008]
[1755438960570,0.06,193.59,193.58,120.33339008]
[1755438961273,0.06,193.59,193.58,83.95339008]
[1755438961465,0.06,193.59,193.58,120.33339008]
[1755438968362,0.06,193.59,193.58,146.33339008]
[1755438968674,0.06,193.61,193.6,26.0]
[1755438968847,0.06,193.63,193.6,140.49756717]
[1755438969052,0.06,193.63,193.62,3.91756719]
[1755438969282,0.06,193.63,193.62,40.29756719]
[1755438969685,0.06,193.63,193.62,40.96756719]
[1755438969849,0.06,193.63,193.62,46.13232289]
[1755438970565,0.06,193.63,193.62,45.46232289]
[1755438970771,0.06,193.63,193.62,46.13232289]
[1755438972118,0.06,193.65,193.64,26.0]
[1755438972462,0.06,193.65,193.64,66.29756719]
[1755438972999,0.76,193.65,193.64,66.29756719]
[1755438973700,0.76,193.65,193.64,71.46178945]
[1755438974481,0.06,193.65,193.64,71.46178945]
[1755438975205,0.77,193.65,193.6,74.19999998]
[1755438975386,0.77,193.65,193.62,3.91756719]
[1755438975584,0.77,193.65,193.64,3.91756719]
[1755438975903,0.77,193.65,193.61,36.38]
[1755438976074,0.77,193.65,193.63,3.91756719]
[1755438976406,4.24096298,193.65,193.62,3.91756719]
[1755438976710,0.71,193.64,193.62,3.91756719]
[1755438977313,0.71,193.64,193.63,3.91756719]
[1755438977999,0.71,193.64,193.6,36.38]
[1755438978189,9.3452009,193.64,193.6,3.91756719]
[1755438978384,7.32759497,193.63,193.6,3.91756719]
[1755438978589,4.18096298,193.63,193.6,3.91756719]
[1755438978778,3.47096298,193.63,193.6,3.91756719]
[1755438979104,0.71,193.62,193.6,3.91756719]
[1755438979295,0.71,193.62,193.57,141.74585543]
[1755438979495,3.47096298,193.63,193.61,3.91756719]
[1755438980068,0.71,193.62,193.61,3.91756719]
[1755438980273,0.71,193.62,193.6,3.91756719]
[1755438980501,0.71,193.61,193.6,3.91756719]
[1755438981185,15.10621557,193.6,193.58,0.03]
[1755438981473,26.35467644,193.59,193.58,0.03]
[1755438981693,27.06467644,193.59,193.58,0.03]
[1755438983683,32.23023251,193.59,193.58,0.03]
[1755438983987,15.10621557,193.58,193.56,1e-08]
[1755438984190,11.24871878,193.57,193.56,1e-08]
[1755438984389,23.14736716,193.57,193.56,1e-08]
[1755438984811,19.28930588,193.57,193.56,1e-08]
[1755438985804,3.47309031,193.57,193.56,1e-08]
[1755438986002,15.10621557,193.59,193.56,3.9175672]
[1755438986208,15.10621557,193.59,193.57,3.91756719]
[1755438986516,15.81621557,193.59,193.56,1e-08]
[1755438986696,0.71,193.58,193.56,3.9175672]
[1755438987794,0.71,193.58,193.56,1e-08]
[1755438987982,0.71,193.57,193.56,1e-08]
[1755438990216,20.98179959,193.59,193.56,1e-08]
[1755438990610,0.71,193.58,193.56,1e-08]
[1755438991923,5.87585495,193.58,193.56,1e-08]
[1755438992722,0.71,193.58,193.56,3.9175672]
[1755438993123,5.87583378,193.58,193.56,1e-08]
[1755438993323,0.71,193.57,193.56,1e-08]
[1755438993504,11.9516778,193.57,193.56,1e-08]
[1755438993998,8.03411061,193.57,193.56,1e-08]
[1755438994202,11.9516778,193.57,193.56,1e-08]
[1755438994894,27.05789337,193.57,193.56,1e-08]
[1755438995090,32.22398315,193.57,193.56,1e-08]
[1755438995922,36.5686667,193.57,193.56,1e-08]
[1755438996422,62.5686667,193.57,193.56,1e-08]
[1755438996602,15.10621557,193.56,193.55,1e-08]
[1755438996803,30.97546056,193.56,193.54,1e-08]
[1755438997011,27.05789337,193.55,193.54,1e-08]
[1755438997524,15.10621557,193.54,193.52,0.03]
[1755438997698,62.86789337,193.53,193.52,0.03]
[1755438998024,63.57789337,193.53,193.52,0.03]
[1755438998217,65.64919837,193.53,193.52,0.03]
[1755438998611,24.19120731,193.52,193.42,4.62756719]
[1755438998821,32.22531792,193.52,193.51,1e-08]
[1755438999003,32.22531792,193.52,193.5,1e-08]
[1755438999205,26.34789337,193.51,193.5,1e-08]
[1755438999519,27.05789337,193.51,193.5,1e-08]
[1755439000493,32.22558496,193.51,193.5,1e-08]
[1755439001326,41.10621557,193.47,193.39,4.11756719]
[1755439001515,41.10621557,193.47,193.41,0.71]
[1755439001516,15.10621557,193.44,193.41,0.71]
[1755439001719,36.56,193.43,193.41,0.71]
[1755439002022,36.56,193.43,193.42,0.71]
[1755439002023,51.66621557,193.43,193.42,0.71]
[1755439002727,36.56,193.43,193.42,0.71]
[1755439002919,36.56,193.43,193.42,4.62756719]
[1755439003123,15.10621557,193.46,193.42,4.62756719]
[1755439003312,36.6,193.45,193.43,0.71]
[1755439003509,51.70621557,193.45,193.44,0.71]
[1755439003718,15.10621557,193.44,193.4,4.62756719]
[1755439003901,15.10621557,193.44,193.41,0.71]
[1755439004226,36.6,193.45,193.42,4.62756719]
[1755439004429,36.6,193.45,193.43,0.71]
[1755439004629,36.6,193.45,193.42,3.91756719]
[1755439004805,51.70621557,193.45,193.44,0.7]
[1755439005008,15.10621557,193.45,193.44,0.7]
[1755439005206,51.70621557,193.45,193.44,0.7]
[1755439005610,51.70621557,193.45,193.39,0.2]
[1755439005611,20.27577719,193.44,193.39,0.2]
[1755439005812,3.91756719,193.4,193.39,0.2]
[1755439006019,40.63756719,193.4,193.39,0.2]
[1755439006220,45.19094559,193.4,193.39,0.2]
[1755439006813,50.3615764,193.4,193.39,0.2]
[1755439008433,50.35231863,193.4,193.39,0.2]
[1755439009038,46.43475144,193.4,193.39,0.2]
[1755439009340,49.63231863,193.4,193.39,0.2]
[1755439010349,50.35231863,193.4,193.39,0.2]
[1755439011024,65.4585342,193.4,193.39,0.2]
[1755439011413,65.45422566,193.4,193.39,0.2]
[1755439015731,68.88891305,193.4,193.39,0.2]
[1755439016122,70.96129105,193.4,193.39,0.2]
[1755439016913,66.32372386,193.4,193.39,0.2]
[1755439017113,62.88903647,193.4,193.39,0.9]
[1755439017627,60.81665847,193.4,193.39,0.9]
[1755439017836,60.83665847,193.4,193.39,0.9]
[1755439019721,60.83665847,193.4,193.39,0.2]
[1755439020047,64.27447949,193.4,193.39,0.9]
[1755439020546,68.19239951,193.4,193.39,0.2]
[1755439021347,68.91239951,193.4,193.39,0.2]
[1755439022125,32.17239951,193.4,193.39,0.2]
[1755439022445,68.87239951,193.4,193.39,0.2]
[1755439024421,68.15239951,193.4,193.39,0.2]
[1755439024621,68.87239951,193.4,193.39,0.2]
[1755439025018,64.95483232,193.4,193.39,0.2]
[1755439025217,68.87239951,193.4,193.39,0.2]
[1755439026143,7.25798594,193.4,193.39,4.81756719]
[1755439026336,3.82016492,193.4,193.39,4.81756719]
[1755439026650,7.25798594,193.4,193.39,4.81756719]
[1755439027740,7.25798594,193.4,193.39,0.2]
[1755439027949,27.53483232,193.4,193.39,0.2]
[1755439028125,7.25798594,193.4,193.39,4.81756719]
[1755439028326,3.82016492,193.4,193.39,4.81756719]
[1755439028636,3.82903636,193.4,193.39,4.81756719]
[1755439029242,3.82903695,193.4,193.39,4.81756719]
[1755439029923,3.82903695,193.4,193.39,30.81756719]
[1755439030131,3.44660249,193.47,193.42,26.0]
[1755439030342,3.44660249,193.49,193.46,3.91756719]
[1755439030526,36.94,193.5,193.47,3.91756719]
[1755439030732,3.44696898,193.49,193.47,3.91756719]
[1755439030928,3.44696898,193.48,193.47,3.91756719]
[1755439031132,3.44696898,193.48,193.43,5.16959243]
[1755439031133,15.82621557,193.48,193.45,3.91756719]
[1755439031334,3.44696898,193.47,193.45,3.91756719]
[1755439031740,3.44696898,193.47,193.46,3.91756719]
[1755439033454,3.44696898,193.47,193.44,5.16948947]
[1755439033648,3.44696898,193.47,193.46,3.91756719]
[1755439035556,3.44696898,193.47,193.45,3.91756719]
[1755439035758,3.44696898,193.46,193.45,3.91756719]
[1755439035963,3.44696898,193.47,193.45,3.91756719]
[1755439036150,3.44696898,193.46,193.45,3.91756719]
[1755439036330,3.44696898,193.47,193.45,3.91756719]
[1755439036530,3.44696898,193.46,193.45,3.91756719]
[1755439036745,3.44696898,193.47,193.45,3.91756719]
[1755439036953,3.44696898,193.46,193.45,3.91756719]
[1755439037252,3.44696898,193.47,193.45,3.91756719]
[1755439037447,36.88,193.48,193.43,5.16978612]
[1755439037448,3.46135916,193.46,193.43,5.16978612]
[1755439037752,36.88,193.48,193.45,3.91756719]
[1755439037929,0.72,193.46,193.43,3.91756719]
[1755439038134,3.46135837,193.45,193.42,26.0]
[1755439038439,42.04872957,193.48,193.44,3.91756719]
[1755439038644,0.72,193.44,193.41,3.91756719]